bitfinex-derivatives/quotes_BTCF0:USTF0_20240917
["timestamp","ask_amount","ask_price","bid_price","bid_amount"]
[1726575258532,0.812999,59175.0,59174.0,0.0016]
[1726575258735,0.649999,59175.0,59174.0,0.0016]
[1726575259037,0.811999,59175.0,59174.0,0.0016]
[1726575259341,0.811999,59175.0,59174.0,0.00113546]
[1726575260238,0.084502,59173.0,59162.0,0.5432]
[1726575260433,0.0008,59163.0,59162.0,0.5432]
[1726575261435,0.0008,59163.0,59162.0,0.56645965]
[1726575261633,0.0018,59163.0,59162.0,0.57745965]
[1726575262034,0.0018,59163.0,59162.0,0.58145965]
[1726575262431,0.07811607,59168.0,59162.0,0.58145965]
[1726575262432,0.07811607,59168.0,59162.0,1.44933965]
[1726575262643,0.0046,59180.0,59167.0,0.5208]
[1726575262846,0.07811875,59172.0,59168.0,0.2847]
[1726575263049,0.07811875,59176.0,59173.0,0.16]
[1726575263250,0.07811875,59175.0,59173.0,0.11379307]
[1726575263546,0.07811875,59174.0,59173.0,0.11379307]
[1726575264142,0.07811875,59174.0,59173.0,0.03736377]
[1726575265145,0.07911875,59174.0,59170.0,0.16]
[1726575265453,0.0008,59171.0,59170.0,0.16]
[1726575266948,0.0008,59171.0,59170.0,0.163]
[1726575267142,0.0008,59171.0,59170.0,0.165]
[1726575272857,0.085305,59171.0,59170.0,0.165]
[1726575273242,0.085305,59171.0,59170.0,0.005]
[1726575274854,0.446105,59171.0,59170.0,0.005]
[1726575275758,0.446105,59171.0,59170.0,0.00362848]
[1726575281860,0.53061,59171.0,59170.0,0.00362848]
[1726575282460,0.60872875,59171.0,59170.0,0.00362848]
[1726575282852,0.53061,59171.0,59170.0,0.00362848]
[1726575283359,0.16902,59167.0,59166.0,0.02130703]
[1726575283562,0.084516,59163.0,59162.0,0.0008]
[1726575283760,0.084512,59166.0,59162.0,0.0008]
[1726575283966,0.0004,59163.0,59162.0,0.02220937]
[1726575284151,0.3612,59167.0,59162.0,0.02220937]
[1726575284351,0.3612,59167.0,59166.0,0.0004]
[1726575284547,0.3612,59167.0,59166.0,0.003]
[1726575285348,0.3612,59167.0,59162.0,0.02220937]
[1726575285565,0.0014,59163.0,59162.0,0.03120937]
[1726575286249,0.0004,59163.0,59162.0,0.02520937]
[1726575286964,0.0014,59163.0,59162.0,0.03120937]
[1726575287364,0.0014,59163.0,59162.0,0.02820937]
[1726575287859,0.0014,59163.0,59162.0,0.02513489]
[1726575288376,0.0024,59163.0,59162.0,0.02513489]
[1726575288758,0.0024,59163.0,59153.0,0.44533]
[1726575288759,0.08051875,59163.0,59153.0,0.3608]
[1726575288960,0.0008,59154.0,59153.0,0.38262694]
[1726575289262,0.00939145,59154.0,59153.0,0.02182694]
[1726575289576,0.0008,59154.0,59148.0,0.16]
[1726575290057,0.01015879,59154.0,59153.0,0.014]
[1726575290364,0.001,59154.0,59153.0,0.014]
[1726575290864,0.01036853,59154.0,59153.0,0.016]
[1726575291065,0.002,59154.0,59153.0,0.016]
[1726575291766,0.01028899,59154.0,59153.0,0.016]
[1726575291965,0.01028899,59154.0,59153.0,0.08653]
[1726575292164,0.01028899,59154.0,59153.0,0.002]
[1726575292469,0.00928899,59154.0,59153.0,0.002]
[1726575292761,0.01028899,59154.0,59153.0,0.007]
[1726575293764,0.01028899,59154.0,59153.0,0.09153]
[1726575298363,0.01028899,59154.0,59153.0,0.007]
[1726575298571,0.25481799,59154.0,59153.0,0.007]
[1726575299879,0.17028899,59154.0,59153.0,0.007]
[1726575300071,0.70014699,59154.0,59153.0,0.007]
[1726575300265,0.93584699,59154.0,59153.0,0.007]
[1726575300764,0.93584699,59154.0,59153.0,0.008]
[1726575301073,0.85131799,59154.0,59153.0,0.008]
[1726575301269,0.85031799,59154.0,59153.0,0.006]
[1726575301469,0.85131799,59154.0,59153.0,0.008]
[1726575301666,0.084533,59151.0,59150.0,0.00253565]
[1726575301875,0.245333,59151.0,59150.0,0.00253565]
[1726575302065,1.352533,59151.0,59150.0,0.00253565]
[1726575302669,0.245333,59151.0,59150.0,0.00253565]
[1726575302874,1.268,59151.0,59148.0,0.02166039]
[1726575303181,0.3616,59149.0,59139.0,0.0039]
[1726575303475,0.0008,59142.0,59141.0,0.0217179]
[1726575303662,0.1608,59142.0,59133.0,0.00253661]
[1726575303870,0.0008,59134.0,59133.0,0.00253661]
[1726575304062,0.0008,59134.0,59133.0,0.24709561]
[1726575304263,0.0008,59134.0,59133.0,0.24701561]
[1726575304769,0.0008,59134.0,59133.0,0.08701561]
[1726575304970,0.0008,59134.0,59133.0,0.24701561]
[1726575305564,0.0008,59134.0,59133.0,1.35433561]
[1726575306179,0.0008,59134.0,59133.0,1.37566997]
[1726575306579,0.0018,59134.0,59133.0,1.37566997]
[1726575306775,0.0028,59134.0,59133.0,1.37566997]
[1726575306966,0.0028,59134.0,59133.0,0.26834997]
[1726575307169,0.0028,59134.0,59133.0,0.10834997]
[1726575307369,0.0028,59134.0,59133.0,0.26834997]
[1726575309480,0.0028,59134.0,59133.0,1.46022897]
[1726575309781,0.0028,59134.0,59133.0,1.37566997]
[1726575310177,0.0028,59134.0,59133.0,0.26834997]
[1726575310583,0.087357,59134.0,59133.0,0.02133436]
[1726575310788,0.087357,59134.0,59128.0,0.00088]
[1726575310789,0.087359,59134.0,59130.0,0.00253678]
[1726575311082,0.0008,59131.0,59130.0,0.00253678]
[1726575312279,0.0008,59131.0,59130.0,0.08709978]
[1726575312991,0.0008,59131.0,59130.0,0.24709978]
[1726575313379,0.0018,59131.0,59130.0,0.08709978]
[1726575313578,0.0028,59131.0,59130.0,0.09109978]
[1726575314492,0.0028,59131.0,59130.0,0.25109978]
[1726575314990,0.0028,59131.0,59130.0,0.09109978]
[1726575318187,0.0028,59131.0,59130.0,0.00653678]
[1726575319289,0.1628,59131.0,59130.0,0.00653678]
[1726575319497,0.0028,59131.0,59130.0,0.00653678]
[1726575320294,1.27016,59131.0,59128.0,0.02152607]
[1726575320494,0.085365,59129.0,59121.0,0.084576]
[1726575320794,0.085365,59129.0,59123.0,0.16]
[1726575320795,0.3608,59126.0,59123.0,0.16]
[1726575320998,0.3608,59126.0,59120.0,0.16]
[1726575321296,0.084574,59123.0,59119.0,0.00253725]
[1726575321590,0.0008,59121.0,59120.0,0.244577]
[1726575321788,0.00914627,59121.0,59120.0,0.244577]
[1726575322094,0.0008,59121.0,59120.0,0.244577]
[1726575322591,0.0090921,59121.0,59120.0,0.244577]
[1726575322787,0.0008,59121.0,59120.0,0.244577]
[1726575323488,0.01119259,59121.0,59119.0,0.00253725]
[1726575323688,0.01119259,59121.0,59120.0,0.16]
[1726575324595,0.01019259,59121.0,59120.0,0.16]
[1726575324794,0.01119259,59121.0,59120.0,0.16]
[1726575324991,0.09576859,59121.0,59120.0,0.16]
[1726575325190,0.084577,59120.0,59119.0,0.00253725]
[1726575325396,0.085377,59120.0,59119.0,0.00253725]
[1726575325594,0.0008,59120.0,59119.0,0.00253725]
[1726575326001,0.0008,59120.0,59119.0,0.08811625]
[1726575326296,0.085377,59120.0,59119.0,0.16353725]
[1726575326603,0.085377,59120.0,59119.0,0.00353725]
[1726575326799,0.0078,59120.0,59119.0,0.00253725]
[1726575327305,0.0048,59120.0,59119.0,0.00253725]
[1726575327597,0.0108,59120.0,59119.0,0.00253725]
[1726575328099,0.0138,59120.0,59119.0,0.00253725]
[1726575328293,0.098377,59120.0,59119.0,0.00253725]
[1726575328495,0.0138,59120.0,59119.0,0.00253725]
[1726575328798,0.0138,59120.0,59119.0,0.24711625]
[1726575329797,0.0039,59128.0,59127.0,0.084567]
[1726575329997,0.3654,59138.0,59127.0,0.16]
[1726575329998,0.0646,59137.0,59127.0,0.16]
[1726575330300,0.0646,59137.0,59122.0,0.3608]
[1726575330301,0.3608,59132.0,59128.0,0.084566]
[1726575330602,0.149154,59137.0,59130.0,0.084563]
[1726575330906,0.084555,59136.0,59130.0,0.084563]
[1726575331994,0.084562,59131.0,59128.0,0.0016]
[1726575332198,0.0008,59129.0,59128.0,0.0016]
[1726575332700,0.0008,59129.0,59128.0,0.0046]
[1726575332891,0.0008,59129.0,59128.0,0.089166]
[1726575333393,0.0008,59129.0,59128.0,0.086166]
[1726575333589,0.0018,59129.0,59128.0,0.0036]
[1726575334203,0.0048,59129.0,59128.0,0.0016]
[1726575334894,0.0068,59129.0,59128.0,0.0016]
[1726575335606,0.0078,59129.0,59128.0,0.0026]
[1726575336499,0.3608,59144.0,59136.0,0.084555]
[1726575336705,0.00850922,59138.0,59136.0,0.605355]
[1726575336902,0.02756601,59137.0,59136.0,0.68991]
[1726575337097,0.00839639,59139.0,59138.0,0.084552]
[1726575337295,0.3608,59144.0,59141.0,0.084547]
[1726575337296,0.05454009,59142.0,59141.0,0.084547]
[1726575337501,0.41534009,59144.0,59136.0,0.3608]
[1726575337701,0.42394556,59144.0,59143.0,0.244945]
[1726575338102,0.42394556,59144.0,59143.0,0.1604]
[1726575338305,0.66848856,59144.0,59143.0,0.0004]
[1726575339698,0.08455,59139.0,59136.0,0.003]
[1726575339902,0.41574009,59137.0,59136.0,0.02516928]
[1726575340108,0.0004,59137.0,59136.0,0.26972428]
[1726575340404,0.0004,59137.0,59136.0,1.45859928]
[1726575340705,0.0004,59137.0,59136.0,1.37404428]
[1726575341091,0.0084,59137.0,59136.0,1.37504428]
[1726575341299,0.0094,59137.0,59136.0,0.258555]
[1726575341693,0.0014,59137.0,59136.0,0.262555]
[1726575341903,0.0014,59137.0,59136.0,0.28396395]
[1726575342107,0.0014,59137.0,59136.0,0.79128395]
[1726575342304,0.0014,59137.0,59136.0,0.78628395]
[1726575342506,0.0014,59137.0,59136.0,0.78828395]
[1726575343005,0.0004,59137.0,59136.0,0.78028395]
[1726575343804,0.0004,59137.0,59136.0,0.77528395]
[1726575344010,0.0004,59137.0,59136.0,0.77328395]
[1726575344205,0.0024,59137.0,59136.0,0.77328395]
[1726575344709,0.0024,59137.0,59136.0,0.77628395]
[1726575345214,0.0004,59137.0,59136.0,1.13808395]
[1726575345812,0.0004,59137.0,59136.0,0.63076395]
[1726575346309,0.13949309,59137.0,59136.0,0.38620895]
[1726575346503,0.13949309,59137.0,59136.0,0.02540895]
[1726575346703,0.13949309,59137.0,59136.0,0.02640895]
[1726575347010,0.13949309,59137.0,59136.0,0.02740895]
[1726575347594,0.05694009,59137.0,59136.0,0.02540895]
[1726575348014,0.05694009,59137.0,59136.0,0.02140895]
[1726575348210,0.05694009,59137.0,59134.0,0.084557]
[1726575348428,0.05494009,59135.0,59134.0,0.084557]
[1726575349211,0.05494009,59135.0,59133.0,0.00253647]
[1726575349412,0.05494009,59134.0,59133.0,0.00253647]
[1726575349705,0.05494009,59134.0,59133.0,0.00171506]
[1726575350411,0.05494009,59134.0,59133.0,0.02325044]
[1726575351098,0.05494009,59134.0,59133.0,0.02625044]
[1726575351298,0.05494009,59134.0,59133.0,0.02725044]
[1726575352104,0.05494009,59134.0,59133.0,0.18725044]
[1726575356411,0.05494009,59134.0,59133.0,0.27180944]
[1726575356712,0.05494009,59134.0,59133.0,0.18725044]
[1726575357218,0.05494009,59134.0,59133.0,0.02197441]
[1726575357417,0.08456,59133.0,59131.0,0.0008]
[1726575357714,0.05494009,59132.0,59131.0,0.0008]
[1726575358414,0.05494009,59132.0,59131.0,0.02275481]
[1726575358606,0.05494009,59132.0,59131.0,0.0008]
[1726575359008,0.05494009,59132.0,59131.0,0.0048]
[1726575359914,0.05494009,59132.0,59131.0,0.094362]
[1726575360418,0.05494009,59132.0,59131.0,0.173924]
[1726575360614,0.0004,59132.0,59131.0,0.093362]
[1726575374739,0.00416,59132.0,59131.0,0.093362]
[1726575376735,0.00416,59132.0,59131.0,0.454162]
[1726575377038,0.00416,59132.0,59131.0,0.093362]
[1726575377332,0.00416,59132.0,59131.0,0.454162]
[1726575384331,0.00416,59132.0,59131.0,0.093362]
[1726575384531,0.0627,59137.0,59136.0,0.084555]
[1726575384840,0.0627,59137.0,59136.0,0.244955]
[1726575385030,0.11724009,59137.0,59136.0,0.244955]
[1726575386644,0.11924009,59137.0,59136.0,0.244955]
[1726575386827,0.12024009,59137.0,59136.0,0.244955]
[1726575387032,0.12024009,59137.0,59136.0,0.2663837]
[1726575390135,0.20479309,59137.0,59136.0,0.2663837]
[1726575390347,0.12024009,59137.0,59136.0,0.2663837]
[1726575390737,0.12024009,59137.0,59136.0,0.1818287]
[1726575390941,0.12024009,59137.0,59136.0,0.0218287]
[1726575391336,0.12024009,59137.0,59136.0,0.1063837]
[1726575395152,0.12024009,59137.0,59136.0,0.2663837]
[1726575396239,0.0613,59141.0,59136.0,0.6271837]
[1726575396463,0.0616,59151.0,59145.0,0.084542]
[1726575396635,0.0589,59152.0,59151.0,0.084533]
[1726575396838,0.0589,59152.0,59151.0,0.244933]
[1726575396839,0.0673571,59152.0,59151.0,0.244933]
[1726575397144,0.0084571,59152.0,59151.0,0.244533]
[1726575397448,0.4197,59159.0,59151.0,0.16]
[1726575397747,0.4197,59159.0,59149.0,0.3608]
[1726575397748,0.05454009,59154.0,59153.0,0.08453]
[1726575397943,0.0628262,59154.0,59153.0,0.08453]
[1726575398339,0.00828611,59154.0,59153.0,0.08453]
[1726575398649,0.0589,59159.0,59158.0,0.084523]
[1726575398855,0.0589,59159.0,59158.0,0.244923]
[1726575399144,0.11344009,59159.0,59158.0,0.244923]
[1726575401041,0.19796209,59159.0,59158.0,0.02183957]
[1726575401940,0.21196209,59159.0,59158.0,0.02283957]
[1726575402142,0.084527,59156.0,59153.0,0.00353578]
[1726575402444,0.05494009,59154.0,59153.0,0.02422589]
[1726575402639,0.05494009,59154.0,59153.0,0.00253578]
[1726575402846,0.06350966,59154.0,59153.0,0.00253578]
[1726575403239,0.14803866,59154.0,59153.0,0.00253578]
[1726575403448,0.06350966,59154.0,59153.0,0.00353578]
[1726575403646,0.07450966,59154.0,59153.0,0.00453578]
[1726575404539,0.07450966,59154.0,59151.0,0.10694296]
[1726575404735,0.05494009,59152.0,59151.0,0.10694296]
[1726575405839,0.05494009,59152.0,59151.0,0.10794296]
[1726575406347,0.05494009,59152.0,59151.0,0.10694296]
[1726575406538,0.06394009,59152.0,59151.0,0.10794296]
[1726575406738,0.07094009,59152.0,59151.0,0.10894296]
[1726575408347,0.07094009,59152.0,59151.0,0.002]
[1726575408553,0.07948932,59152.0,59151.0,0.002]
[1726575410148,0.44028932,59152.0,59151.0,0.002]
[1726575414554,0.49668932,59152.0,59151.0,0.002]
[1726575415553,0.50044932,59152.0,59151.0,0.002]
[1726575416147,0.13964932,59152.0,59151.0,0.002]
[1726575416757,0.22418132,59152.0,59151.0,0.002]
[1726575417056,0.22418132,59152.0,59044.0,0.08424397]
[1726575417057,0.084537,59149.0,59141.0,0.244547]
[1726575417257,0.0004,59143.0,59142.0,0.02482711]
[1726575417456,0.05494009,59143.0,59142.0,0.02482711]
[1726575418664,0.05494009,59143.0,59142.0,0.02582711]
[1726575418953,0.13948509,59143.0,59142.0,0.02582711]
[1726575419348,0.13948509,59143.0,59142.0,0.02882711]
[1726575419754,0.14748509,59143.0,59142.0,0.02882711]
[1726575420461,0.06294009,59143.0,59142.0,0.02882711]
[1726575420663,0.06894009,59143.0,59142.0,0.02682711]
[1726575421454,0.15348509,59143.0,59142.0,0.02682711]
[1726575421952,0.06894009,59143.0,59142.0,0.02682711]
[1726575425685,0.15348509,59143.0,59142.0,0.02682711]
[1726575425874,0.06894009,59143.0,59142.0,0.02682711]
[1726575426277,0.15348509,59143.0,59142.0,0.02682711]
[1726575427681,0.06894009,59143.0,59142.0,0.02682711]
[1726575428669,0.22894009,59143.0,59142.0,0.02429132]
[1726575428879,0.39803009,59143.0,59142.0,0.02429132]
[1726575429079,0.31348509,59143.0,59142.0,0.02429132]
[1726575429284,0.99803009,59143.0,59142.0,0.02429132]
[1726575431086,0.99803009,59143.0,59142.0,0.002]
[1726575431383,0.39803009,59143.0,59142.0,0.002]
[1726575431790,0.99803009,59143.0,59142.0,0.002]
[1726575432190,0.39803009,59143.0,59142.0,0.002]
[1726575432388,0.99803009,59143.0,59142.0,0.002]
[1726575433184,0.39803009,59143.0,59142.0,0.002]
[1726575434386,0.39803009,59143.0,59142.0,0.02387201]
[1726575439592,0.31348509,59143.0,59142.0,0.02387201]
[1726575445296,0.06894009,59143.0,59142.0,0.02387201]
[1726575447798,0.14708337,59143.0,59142.0,0.02387201]
[1726575449594,0.23162837,59143.0,59142.0,0.02387201]
[1726575450383,0.31617337,59143.0,59142.0,0.02387201]
[1726575451295,0.23803009,59143.0,59142.0,0.02387201]
[1726575452102,0.15348509,59143.0,59142.0,0.02387201]
[1726575453996,0.25348509,59143.0,59142.0,0.02387201]
[1726575455499,0.25724509,59143.0,59142.0,0.02387201]
[1726575458606,0.17270009,59143.0,59142.0,0.02387201]
[1726575458811,0.07270009,59143.0,59142.0,0.02387201]
[1726575460091,0.17270009,59143.0,59142.0,0.02387201]
[1726575460298,0.17270009,59143.0,59142.0,0.0167444]
[1726575460593,0.25724509,59143.0,59137.0,0.0558]
[1726575460798,0.41574009,59138.0,59137.0,0.0558]
[1726575460999,0.41574009,59138.0,59137.0,0.08365997]
[1726575461698,0.05494009,59138.0,59137.0,0.08365997]
[1726575462908,0.05494009,59138.0,59137.0,0.07529398]
[1726575463093,0.05694009,59138.0,59137.0,0.07529398]
[1726575465007,0.06558155,59138.0,59137.0,0.06668398]
[1726575469515,0.06558155,59138.0,59137.0,0.02785997]
[1726575469805,0.15013355,59138.0,59135.0,0.0545]
[1726575470010,0.05494009,59136.0,59135.0,0.0545]
[1726575470505,0.05494009,59136.0,59135.0,0.239056]
[1726575471509,0.05494009,59136.0,59135.0,0.0545]
[1726575471701,0.05494009,59136.0,59135.0,0.08210992]
[1726575472099,0.05494009,59136.0,59135.0,0.08410992]
[1726575472503,0.05494009,59136.0,59135.0,0.16866592]
[1726575473207,0.05494009,59136.0,59135.0,0.11298519]
[1726575474110,0.05594009,59136.0,59135.0,0.11298519]
[1726575474806,0.0014,59136.0,59135.0,0.11298519]
[1726575475012,0.05594009,59136.0,59135.0,0.11298519]
[1726575475596,0.05594009,59136.0,59135.0,0.11198519]
[1726575478204,0.0014,59136.0,59135.0,0.11198519]
[1726575484812,0.05594009,59136.0,59135.0,0.11198519]
[1726575485821,0.05594009,59136.0,59135.0,0.02742919]
[1726575486407,0.05594009,59136.0,59135.0,0.11198519]
[1726575488219,0.05594009,59136.0,59135.0,0.02742919]
[1726575488415,0.05594009,59136.0,59135.0,0.11198519]
[1726575488930,0.05594009,59136.0,59135.0,0.02742919]
[1726575490522,0.05594009,59136.0,59135.0,0.11198519]
[1726575490918,0.0014,59136.0,59135.0,0.19654119]
[1726575491118,0.0014,59136.0,59135.0,0.11198519]
[1726575491314,0.0014,59136.0,59135.0,0.70386119]
[1726575491614,0.0014,59136.0,59135.0,0.53880656]
[1726575492517,0.0014,59136.0,59135.0,1.13880656]
[1726575493119,0.10441063,59193.0,59135.0,1.13880656]
[1726575493120,0.327,59152.0,59135.0,1.08128154]
[1726575493318,0.327,59152.0,59148.0,0.084537]
[1726575493525,0.3608,59156.0,59148.0,0.1004]
[1726575493825,0.19216553,59153.0,59149.0,0.3608]
[1726575494029,0.20078889,59153.0,59152.0,0.084532]
[1726575494740,0.00862336,59153.0,59152.0,0.184532]
[1726575494930,0.3608,59156.0,59154.0,0.084529]
[1726575495130,0.55296553,59156.0,59155.0,0.1004]
[1726575495520,0.56150767,59156.0,59155.0,0.184927]
[1726575496027,0.00854214,59156.0,59155.0,0.545727]
[1726575496226,0.0516,59168.0,59165.0,0.084513]
[1726575496427,0.19216553,59166.0,59165.0,0.1004]
[1726575496925,0.20057312,59166.0,59165.0,0.1004]
[1726575497119,0.00840759,59166.0,59165.0,0.1004]
[1726575497320,0.0484,59171.0,59169.0,0.084507]
[1726575497628,0.05685836,59171.0,59170.0,0.1004]
[1726575498021,0.24902389,59171.0,59170.0,0.0004]
[1726575499526,0.27702389,59171.0,59170.0,0.0014]
[1726575499934,0.27702389,59171.0,59165.0,0.38749343]
[1726575499935,0.19216553,59170.0,59165.0,0.3430062]
[1726575500120,0.07814328,59169.0,59168.0,0.16]
[1726575502439,0.19216553,59169.0,59165.0,0.02869343]
[1726575502623,0.19256553,59166.0,59165.0,0.02769343]
[1726575502821,0.27707753,59166.0,59165.0,0.02769343]
[1726575503030,0.19256553,59166.0,59162.0,0.00253533]
[1726575503237,0.79788153,59163.0,59162.0,0.00253533]
[1726575503626,0.79788153,59163.0,59162.0,0.02968918]
[1726575504736,0.19216553,59159.0,59152.0,0.00253567]
[1726575505037,0.0004,59153.0,59152.0,0.08706767]
[1726575505334,0.07854328,59153.0,59152.0,0.08706767]
[1726575505736,0.07854328,59153.0,59152.0,0.11371925]
[1726575507033,0.08054328,59153.0,59152.0,0.11371925]
[1726575507932,0.0024,59153.0,59152.0,0.11371925]
[1726575509431,0.3608,59158.0,59152.0,0.62087925]
[1726575509637,0.3608,59163.0,59157.0,0.1604]
[1726575509828,0.0527,59166.0,59162.0,0.0004]
[1726575510027,0.19216553,59164.0,59161.0,0.084518]
[1726575510227,0.0004,59162.0,59161.0,0.084518]
[1726575510633,0.137212,59166.0,59161.0,0.084518]
[1726575510837,0.19216553,59164.0,59161.0,0.084518]
[1726575511632,0.19216553,59164.0,59157.0,0.3612]
[1726575511633,0.19216553,59164.0,59162.0,0.3608]
[1726575511841,0.19216553,59164.0,59163.0,0.16]
[1726575512038,0.137212,59166.0,59163.0,0.16]
[1726575512039,0.0657,59166.0,59163.0,0.16]
[1726575512232,0.19216553,59165.0,59164.0,0.084515]
[1726575515145,0.21416553,59165.0,59164.0,0.085515]
[1726575524549,0.21416553,59165.0,59164.0,0.17003]
[1726575525337,0.3608,59169.0,59168.0,0.084509]
[1726575525656,0.3608,59169.0,59168.0,0.244909]
[1726575526843,0.3748,59169.0,59168.0,0.245909]
[1726575527052,0.3748,59169.0,59168.0,0.246909]
[1726575527053,0.3888,59169.0,59168.0,0.246909]
[1726575527242,0.3888,59169.0,59168.0,0.086909]
[1726575527843,0.3838,59169.0,59168.0,0.086909]
[1726575528744,0.3698,59169.0,59168.0,0.086909]
[1726575531046,0.009,59169.0,59168.0,0.086909]
[1726575537952,0.009,59169.0,59168.0,0.186909]
[1726575538155,0.17399863,59169.0,59168.0,0.1024]
[1726575538354,0.08712733,59169.0,59168.0,0.1024]
[1726575538558,0.09088733,59169.0,59168.0,0.1024]
[1726575538858,0.09088733,59169.0,59168.0,0.186909]
[1726575543559,0.09088733,59169.0,59168.0,0.084509]
[1726575543864,0.09088733,59169.0,59168.0,0.184509]
[1726575544170,0.09088733,59169.0,59168.0,0.084509]
[1726575544566,0.09088733,59169.0,59168.0,0.184509]
[1726575545055,0.01276,59169.0,59168.0,0.184509]
[1726575549269,0.01276,59169.0,59168.0,0.269018]
[1726575549660,0.01276,59169.0,59168.0,0.184509]
[1726575549969,0.01276,59169.0,59168.0,0.269018]
[1726575550262,0.01276,59169.0,59168.0,0.236409]
[1726575550662,0.00776,59169.0,59168.0,0.236409]
[1726575551460,0.00376,59169.0,59168.0,0.239409]
[1726575552463,0.00876,59169.0,59168.0,0.239409]
[1726575552672,0.00876,59169.0,59168.0,0.323918]
[1726575552863,0.0039,59176.0,59175.0,0.084499]
[1726575553065,0.084493,59179.0,59178.0,0.084494]
[1726575553269,0.084493,59179.0,59178.0,0.184894]
[1726575553471,0.084493,59179.0,59178.0,0.184494]
[1726575555073,0.084495,59178.0,59176.0,0.1]
[1726575555273,0.0004,59177.0,59176.0,0.184497]
[1726575555569,0.084497,59176.0,59175.0,0.03331849]
[1726575555767,0.184897,59176.0,59175.0,0.00293461]
[1726575556570,0.084897,59176.0,59175.0,0.00293461]
[1726575556960,0.0004,59176.0,59175.0,0.10293461]
[1726575557378,0.0034,59176.0,59175.0,0.10293461]
[1726575557874,0.0064,59176.0,59175.0,0.10293461]
[1726575558076,0.0094,59176.0,59175.0,0.10393461]
[1726575559663,0.0034,59176.0,59175.0,0.10293461]
[1726575559864,0.0064,59176.0,59175.0,0.10293461]
[1726575560667,0.0074,59176.0,59175.0,0.10293461]
[1726575563173,0.0074,59176.0,59175.0,0.04334952]
[1726575565162,0.0074,59176.0,59172.0,0.184502]
[1726575565363,0.0074,59176.0,59175.0,0.1]
[1726575565572,0.007,59176.0,59175.0,0.1]
[1726575565773,0.007,59176.0,59175.0,0.04457488]
[1726575566167,0.003,59176.0,59175.0,0.04457488]
[1726575566371,0.004,59176.0,59175.0,0.04457488]
[1726575567177,0.005,59176.0,59175.0,0.12907388]
[1726575567671,0.007,59176.0,59175.0,0.12907388]
[1726575569185,0.007,59176.0,59168.0,0.0039]
[1726575569381,0.007,59176.0,59169.0,0.084506]
[1726575569382,0.084501,59174.0,59169.0,0.084506]
[1726575569882,0.0598,59176.0,59166.0,0.39109428]
[1726575570183,0.0004,59167.0,59166.0,0.56011828]
[1726575570483,0.0004,59167.0,59166.0,0.47560628]
[1726575570781,0.0004,59167.0,59166.0,0.98264628]
[1726575570986,0.0004,59167.0,59166.0,0.47560628]
[1726575572387,0.0004,59167.0,59166.0,0.48660628]
[1726575573071,0.0014,59167.0,59166.0,0.48660628]
[1726575576284,0.139804,59172.0,59166.0,0.40209428]
[1726575576585,0.139804,59172.0,59171.0,0.084905]
[1726575576789,0.084504,59172.0,59171.0,0.084905]
[1726575577297,0.084497,59177.0,59171.0,0.0004]
[1726575577298,0.084499,59175.0,59171.0,0.0004]
[1726575577484,0.084499,59175.0,59174.0,0.0004]
[1726575577996,0.084497,59177.0,59176.0,0.084497]
[1726575578174,0.084493,59179.0,59178.0,0.084494]
[1726575578372,0.084493,59179.0,59172.0,0.136003]
[1726575578373,0.07811902,59179.0,59172.0,0.136003]
[1726575578583,0.1085,59180.0,59178.0,0.084494]
[1726575578776,0.084493,59179.0,59178.0,0.084494]
[1726575578976,0.1085,59180.0,59179.0,0.084493]
[1726575579291,0.1085,59180.0,59179.0,0.084893]
[1726575579584,0.1085,59180.0,59179.0,0.084493]
[1726575579786,0.1085,59180.0,59179.0,0.11504568]
[1726575580286,0.1085,59180.0,59179.0,0.11704568]
[1726575580287,0.1195,59180.0,59179.0,0.11704568]
[1726575581471,0.1195,59180.0,59179.0,0.03255268]
[1726575584793,0.1195,59180.0,59179.0,0.11704568]
[1726575585076,0.00854793,59182.0,59181.0,0.08449]
[1726575585277,0.0039,59188.0,59181.0,0.0004]
[1726575585480,0.3608,59189.0,59186.0,0.084483]
[1726575585790,0.36931842,59189.0,59181.0,0.0004]
[1726575585979,0.36931842,59189.0,59188.0,0.08448]
[1726575586378,0.36931842,59189.0,59186.0,0.084482]
[1726575586585,0.0004,59187.0,59186.0,0.084482]
[1726575587587,0.0004,59187.0,59186.0,0.085482]
[1726575587781,0.0004,59187.0,59186.0,0.001]
[1726575587985,0.0004,59187.0,59186.0,0.085483]
[1726575588784,0.0044,59187.0,59186.0,0.086483]
[1726575589283,0.0044,59187.0,59186.0,0.085483]
[1726575589482,0.0004,59187.0,59186.0,0.085483]
[1726575589692,0.00432,59187.0,59186.0,0.11665603]
[1726575589878,0.00432,59187.0,59186.0,0.11565603]
[1726575590084,0.00432,59187.0,59186.0,0.11665603]
[1726575590781,0.004,59187.0,59186.0,0.11665603]
[1726575591385,0.00851842,59189.0,59188.0,0.08448]
[1726575591588,0.006,59193.0,59192.0,0.084475]
[1726575591791,0.006,59193.0,59192.0,0.084875]
[1726575592092,0.01449819,59193.0,59192.0,0.084475]
[1726575592306,0.006,59193.0,59192.0,0.084475]
[1726575592792,0.01438318,59193.0,59192.0,0.084475]
[1726575593290,0.01538318,59193.0,59192.0,0.086475]
[1726575593678,0.01438318,59193.0,59192.0,0.085475]
[1726575593990,0.01538318,59193.0,59192.0,0.086475]
[1726575594890,0.0039,59200.0,59196.0,0.084469]
[1726575595191,0.0531,59201.0,59199.0,0.0008]
[1726575595495,0.0531,59201.0,59200.0,0.0008]
[1726575596387,0.4149,59201.0,59200.0,0.0008]
[1726575596992,0.4149,59201.0,59200.0,0.0018]
[1726575598385,0.001,59201.0,59200.0,0.086263]
[1726575598592,0.002,59201.0,59200.0,0.087263]
[1726575599594,0.002,59201.0,59200.0,0.11708359]
[1726575599994,0.001,59201.0,59200.0,0.11708359]
[1726575600390,0.3618,59201.0,59200.0,0.03262059]
[1726575601398,0.446262,59201.0,59200.0,0.03262059]
[1726575601594,0.3618,59201.0,59200.0,0.002]
[1726575601786,0.3626,59201.0,59200.0,0.002]
[1726575602201,0.4147,59201.0,59200.0,0.002]
[1726575603297,0.499162,59201.0,59200.0,0.002]